bitfinex/quotes_ETHUSD_20260312
["timestamp","ask_amount","ask_price","bid_price","bid_amount"]
[1773306469678,0.002,2047.7,2047.4,0.01465129]
[1773306469875,0.002,2047.7,2047.4,1.22106085]
[1773306470069,0.002,2047.7,2047.5,0.01465129]
[1773306471390,0.002,2047.7,2047.5,1.23564503]
[1773306475659,0.002,2047.7,2047.5,1.22099374]
[1773306475864,0.49467435,2047.7,2047.5,1.22099374]
[1773306480200,0.47728922,2047.9,2047.5,1.6784768]
[1773306480400,0.47728922,2047.9,2047.7,0.001]
[1773306481074,0.002,2047.9,2047.7,0.45848306]
[1773306482176,0.002,2047.9,2047.8,1.22082234]
[1773306483099,0.002,2048.2,2047.9,0.45748306]
[1773306483727,0.47528922,2048.1,2047.8,1.22082234]
[1773306484097,0.002,2048.4,2047.9,0.45748306]
[1773306484405,0.47728922,2048.4,2047.9,1.67821863]
[1773306484708,0.47728922,2048.4,2047.8,1.22077086]
[1773306484709,0.47528922,2048.2,2047.8,1.22077086]
[1773306485505,0.47728922,2048.1,2047.8,1.22077086]
[1773306485708,0.47528922,2048.1,2047.8,1.22077086]
[1773306487510,0.47728922,2048.0,2047.7,1.22183915]
[1773306487687,0.47528922,2048.0,2047.7,1.22183915]
[1773306489321,0.47528922,2047.8,2047.5,0.001]
[1773306489620,0.47528922,2047.8,2047.5,1.67943576]
[1773306489997,0.47528922,2047.8,2047.5,1.2219527]
[1773306490317,0.47728922,2047.7,2047.5,1.2219527]
[1773306490490,0.47528922,2047.7,2047.5,1.2219527]
[1773306491119,0.47728922,2047.7,2047.4,1.22104948]
[1773306491415,0.47728922,2047.6,2047.4,1.22104948]
[1773306491618,0.47528922,2047.6,2047.4,1.22104948]
[1773306494223,0.47528922,2047.6,2047.3,4.88546765]
[1773306494519,0.47728922,2047.6,2047.3,4.88546765]
[1773306495230,0.47728922,2047.6,2047.4,0.001]
[1773306495430,0.47528922,2047.4,2047.0,0.001]
[1773306495630,0.47528922,2047.3,2047.0,0.001]
[1773306496303,0.47528922,2047.2,2047.0,0.001]
[1773306496817,0.47628922,2047.2,2047.0,0.001]
[1773306498132,0.47628922,2047.1,2047.0,0.001]
[1773306498339,0.47528922,2047.1,2046.9,0.001]
[1773306498628,0.47628922,2047.1,2046.9,0.001]
[1773306501432,0.45951563,2047.0,2046.9,0.001]
[1773306502140,0.45851563,2047.0,2046.9,0.001]
[1773306503410,0.45951563,2047.0,2046.9,0.001]
[1773306504647,0.45951563,2047.0,2046.6,1.68641556]
[1773306504648,0.45951563,2046.9,2046.6,1.68641556]
[1773306508312,0.45951563,2046.9,2046.8,0.001]
[1773306508512,0.46151563,2046.9,2046.8,0.001]
[1773306511722,0.46151563,2046.9,2046.6,0.001]
[1773306511914,0.45951563,2046.8,2046.6,0.001]
[1773306514132,1.2233632,2046.9,2046.6,0.001]
[1773306514133,0.45951563,2046.7,2046.6,0.001]
[1773306514341,0.45851563,2046.7,2046.6,0.001]
[1773306514937,0.45951563,2046.6,2046.4,1.22165246]
[1773306515244,0.45951563,2046.6,2046.3,1.22265898]
[1773306515245,0.45851563,2046.6,2046.3,1.22265898]
[1773306515451,0.45951563,2046.6,2046.3,1.22266222]
[1773306516854,0.45851563,2046.6,2046.3,1.22266222]
[1773306518847,0.45951563,2046.5,2046.3,1.22266222]
[1773306519154,0.45851563,2046.5,2046.3,0.001]
[1773306520533,0.001,2046.4,2046.3,0.001]
[1773306526374,0.001,2046.4,2046.3,1.22271724]
[1773306528882,0.001,2046.4,2046.3,0.001]
[1773306530060,0.49132522,2046.4,2046.3,0.001]
[1773306532096,0.49032522,2046.4,2046.3,0.001]
[1773306532594,0.002,2046.6,2046.3,0.001]
[1773306532769,0.46398723,2046.5,2046.3,0.001]
[1773306533796,0.46398723,2046.4,2046.3,0.001]
[1773306534494,0.46398723,2046.4,2046.0,0.50030771]
[1773306534796,0.46398723,2046.3,2046.0,1.22284872]
[1773306535698,0.001,2046.4,2045.8,0.49930771]
[1773306535699,0.46398723,2046.2,2045.8,0.49930771]
[1773306535899,0.46398723,2046.4,2045.8,0.49930771]
[1773306536080,0.001,2046.3,2045.9,0.49930771]
[1773306539505,0.001,2046.3,2046.0,1.72120409]
[1773306540022,0.46398723,2046.3,2046.0,1.72120409]
[1773306540512,0.001,2046.3,2046.1,0.49930771]
[1773306541614,0.001,2046.3,2046.2,1.72108466]
[1773306543835,0.46498723,2046.6,2046.2,1.72108466]
[1773306544439,0.46298723,2046.5,2046.2,1.22177695]
[1773306546344,0.46298723,2046.5,2046.2,0.49930771]
[1773306546541,0.46298723,2046.5,2046.4,0.0011]
[1773306547218,0.46298723,2046.4,2045.9,0.49930771]
[1773306547552,0.46398723,2046.4,2045.9,0.49930771]
[1773306547922,0.46398723,2046.4,2045.9,0.50040771]
[1773306548546,0.46298723,2046.2,2045.9,0.0011]
[1773306549238,0.46298723,2046.2,2045.9,1.22305171]
[1773306549441,0.46298723,2046.2,2045.9,0.0011]
[1773306549821,0.46298723,2046.1,2045.5,1.72149142]
[1773306550942,0.46298723,2045.9,2045.5,1.72149142]
[1773306551751,0.46298723,2045.9,2045.5,1.22218371]
[1773306551962,0.46298723,2045.9,2045.6,0.49930771]
[1773306553366,0.46298723,2045.8,2045.4,1.72156252]
[1773306553657,0.46298723,2045.8,2045.5,0.49930771]
[1773306554639,0.46298723,2046.0,2045.5,0.49930771]
[1773306555538,0.46298723,2046.0,2045.6,1.72144302]
[1773306556258,1.68488852,2046.0,2045.6,1.72144302]
[1773306557243,0.46298723,2046.0,2045.6,1.72144302]
[1773306557446,1.68490645,2046.0,2045.6,1.72144302]
[1773306557652,0.46298723,2045.9,2045.6,0.49930771]
[1773306558157,0.46298723,2045.9,2045.6,1.72143783]
[1773306558455,0.46298723,2045.9,2045.5,1.72145598]
[1773306559663,0.46298723,2045.9,2045.7,0.0011]
[1773306561064,0.46298723,2045.9,2045.5,1.72255598]
[1773306561065,0.45508355,2045.8,2045.5,0.0011]
[1773306565675,0.45508355,2045.7,2045.5,0.0011]
[1773306569268,1.2219561,2045.9,2045.5,0.49926785]
[1773306569471,0.45508355,2045.8,2045.5,0.49926785]
[1773306570260,0.45508355,2045.8,2045.3,1.22227361]
[1773306570261,0.45508355,2045.8,2045.3,0.49816785]
[1773306570454,0.45508355,2045.5,2045.2,0.0011]
[1773306570978,0.45508355,2045.5,2045.2,1.22347306]
[1773306571780,0.45508355,2045.8,2045.3,0.49816785]
[1773306572360,0.45508355,2045.8,2045.7,0.0011]
[1773306572781,0.45508355,2045.8,2045.2,1.72164091]
[1773306572967,0.45508355,2045.8,2045.5,0.0011]
[1773306573479,0.45508355,2045.7,2045.5,0.0011]
[1773306577855,0.45508355,2045.9,2045.5,0.49926785]
[1773306578289,0.45508355,2045.8,2045.5,0.49926785]
[1773306578477,0.45508355,2045.8,2045.5,0.0011]
[1773306578676,0.45508355,2045.8,2045.5,1.22329256]
[1773306579269,0.45508355,2045.8,2045.5,0.0011]
[1773306580283,0.45508355,2045.8,2045.5,1.22329425]
[1773306581475,1.67713936,2045.8,2045.4,1.72037394]
[1773306581795,0.45508355,2045.7,2045.4,1.72037394]
[1773306583178,1.69162671,2045.9,2045.5,0.46293869]
[1773306583580,0.46962323,2045.8,2045.5,0.46293869]
[1773306584798,0.46962323,2045.8,2045.7,0.0011]
[1773306586596,1.69150699,2046.1,2045.7,0.46403869]
[1773306587002,0.46962323,2046.0,2045.7,0.46403869]
[1773306588701,4.88724293,2046.2,2045.7,0.46403869]
[1773306588873,0.46962323,2046.1,2045.7,0.46403869]
[1773306589781,0.46962323,2046.1,2045.6,1.222109]
[1773306589985,0.46962323,2046.1,2045.5,1.68620666]
[1773306590388,0.48771593,2046.0,2045.4,1.71520141]
[1773306590886,0.48771593,2045.8,2045.4,1.71520141]
[1773306591505,0.48771593,2045.8,2045.5,0.49295168]
[1773306591887,1.70967203,2045.9,2045.5,0.49295168]
[1773306593714,1.70967203,2045.9,2045.5,1.71512595]
[1773306594707,1.2219561,2045.9,2045.6,0.49295168]
[1773306594883,1.22194302,2046.0,2045.6,0.49295168]
[1773306595284,1.70965895,2046.0,2045.6,0.49295168]
[1773306597583,1.70965895,2046.0,2045.8,0.0011]
[1773306597910,0.001,2045.9,2045.8,0.0011]
[1773306601583,2.105,2046.2,2045.9,0.49295168]
[1773306601787,1.70946517,2046.3,2045.9,0.49295168]
[1773306601988,0.48771593,2046.3,2045.9,0.49295168]
[1773306602304,1.70943366,2046.3,2045.9,0.49295168]
[1773306602807,0.48771593,2046.3,2045.9,0.49295168]
[1773306603707,0.48771593,2046.3,2046.0,1.22189638]
[1773306606918,0.48771593,2046.3,2045.9,1.7148604]
[1773306608887,0.48771593,2046.3,2046.0,0.49295168]
[1773306610716,0.48771593,2046.3,2046.1,0.0011]
[1773306611718,1.22270327,2046.4,2046.1,0.0011]
[1773306611917,0.001,2046.4,2046.1,0.49405168]
[1773306612997,0.48871593,2046.4,2046.1,0.49405168]
[1773306614823,0.48871593,2046.4,2046.1,1.71587402]
[1773306616396,0.48871593,2046.4,2046.1,1.71588467]
[1773306620844,0.48871593,2046.4,2046.1,1.71588701]
[1773306621254,0.48871593,2046.4,2046.1,0.49405168]
[1773306622358,0.48871593,2046.4,2046.1,1.71587891]
[1773306622757,0.48871593,2046.4,2046.1,0.49405168]
[1773306622957,0.48871593,2046.4,2046.1,1.71588035]
[1773306624056,0.001,2046.4,2046.2,0.47279211]
[1773306624439,0.49997103,2046.4,2046.1,0.0011]
[1773306626267,0.49997103,2046.4,2046.1,0.14362366]
[1773306627644,0.49997103,2046.4,2045.9,4.8887824]
[1773306627645,0.49897103,2046.3,2045.9,0.0011]
[1773306627849,0.49897103,2046.3,2045.9,1.22304767]
[1773306629344,0.49897103,2046.3,2045.9,0.0011]
[1773306629547,1.22265915,2046.4,2046.0,0.14405262]
[1773306629548,1.72162967,2046.4,2046.0,0.14405262]
[1773306629861,0.49897103,2046.3,2045.9,1.22305179]
[1773306630571,0.49897103,2046.3,2045.9,1.36762683]
[1773306630868,0.49897103,2046.3,2046.0,0.14457504]
[1773306631066,0.001,2046.4,2046.0,0.14457504]
[1773306631970,0.49997103,2046.4,2046.0,1.36643036]
[1773306633174,0.49997103,2046.4,2046.0,0.14457504]
[1773306633378,0.49997103,2046.4,2046.0,1.36645143]
[1773306633571,0.49997103,2046.4,2046.1,0.14609063]
[1773306633997,0.49997103,2046.4,2046.0,1.22187639]
[1773306634179,0.49997103,2046.4,2046.0,0.14609063]
[1773306635597,0.49997103,2046.4,2046.1,0.001]
[1773306635895,0.002,2046.2,2046.1,0.001]
[1773306636099,0.002,2046.2,2046.1,0.14808152]
[1773306636583,0.002,2046.2,2046.1,1.36991818]
[1773306637269,0.002,2046.2,2046.1,0.14808152]
[1773306637470,0.002,2046.2,2045.9,4.88880715]
[1773306637471,0.50097103,2046.2,2045.9,1.37058557]
[1773306638660,1.72276748,2046.2,2045.9,0.14866065]
[1773306638872,0.49897103,2046.1,2045.9,0.0011]
[1773306639289,0.49897103,2046.1,2045.9,1.22305539]
[1773306639498,0.49897103,2046.1,2045.9,0.0011]
[1773306639666,0.49897103,2046.1,2045.9,1.22305266]
[1773306643822,0.4945181,2046.2,2045.9,1.3742773]
[1773306644222,0.4945181,2046.2,2045.9,1.22305266]
[1773306644418,0.4945181,2046.2,2045.9,0.0011]
[1773306644924,0.4945181,2046.2,2045.8,0.15232464]
[1773306645818,0.4925181,2045.9,2045.6,0.0011]
[1773306646121,0.4925181,2045.9,2045.6,1.22323258]
[1773306646622,0.4925181,2045.9,2045.6,0.0011]
[1773306647198,0.4925181,2045.9,2045.6,1.22323287]
[1773306648821,0.4925181,2045.9,2045.6,0.0011]
[1773306649022,0.4925181,2045.9,2045.8,0.001]
[1773306649341,1.7144742,2045.9,2045.8,0.001]
[1773306649504,0.4925181,2045.9,2045.8,0.001]
[1773306650033,1.7144742,2045.9,2045.8,0.001]
[1773306650534,0.4925181,2045.9,2045.8,0.001]
[1773306652933,1.7144742,2045.9,2045.8,0.001]
[1773306653106,0.4925181,2045.9,2045.8,0.001]
[1773306653429,1.7144742,2045.9,2045.8,0.001]
[1773306653732,0.4925181,2045.9,2045.8,0.001]
[1773306655533,1.7144742,2045.9,2045.8,0.001]
[1773306655730,0.49650552,2045.8,2045.6,0.0011]
[1773306656434,0.49650552,2045.8,2045.1,1.22243411]
[1773306656435,0.49650552,2045.7,2045.1,1.22243411]
[1773306656632,0.49650552,2045.5,2045.1,1.22243411]
[1773306657630,0.49650552,2045.3,2045.0,2.30082293]
[1773306658706,0.49650552,2045.3,2045.0,2.30081833]
[1773306658908,0.49650552,2045.3,2045.0,2.30081797]
[1773306659327,0.49650552,2045.3,2044.9,0.15722825]
[1773306659328,0.49650552,2045.3,2044.9,1.37976207]
[1773306659734,0.49650552,2045.2,2044.9,1.37976207]
[1773306659932,0.49650552,2045.2,2044.6,2.43081222]
[1773306660137,0.49650552,2045.2,2044.7,0.15795513]
[1773306661619,0.49650552,2045.2,2045.0,0.0011]
[1773306664543,0.49650552,2045.1,2045.0,0.0011]
[1773306666142,1.71885113,2045.3,2045.0,0.0011]
[1773306666442,0.49650552,2045.3,2045.0,0.0011]
[1773306669542,0.49650552,2045.2,2045.0,0.0011]
[1773306676242,1.71980105,2045.4,2045.0,0.1632305]
[1773306676442,1.71976332,2045.4,2045.0,0.1632305]
[1773306676644,0.49750552,2045.4,2045.0,0.1632305]
[1773306676846,0.001,2045.4,2045.0,0.1632305]
[1773306678350,0.001,2045.4,2045.1,1.38411679]
[1773306678540,0.49750552,2045.4,2045.1,1.38411679]
[1773306681456,0.49750552,2045.4,2044.9,1.38334221]
[1773306681457,0.49504088,2045.3,2044.9,1.38334221]
[1773306681963,0.49504088,2045.3,2044.9,1.22252472]
[1773306682259,0.49504088,2045.3,2044.9,1.38313209]
[1773306682857,0.49504088,2045.3,2045.0,0.16039966]
[1773306683367,0.49504088,2045.3,2045.0,1.38286225]
[1773306685656,0.49504088,2045.3,2044.9,4.89014714]
[1773306685657,0.49504088,2045.3,2044.8,1.22371345]
[1773306685861,1.22325528,2045.4,2044.9,0.15841105]
[1773306686045,1.71829616,2045.4,2044.9,0.15841105]
[1773306686245,1.71829616,2045.4,2045.1,0.0011]
[1773306690567,1.71829616,2045.4,2045.1,0.15873129]
[1773306691263,1.71829616,2045.4,2044.9,0.0011]
[1773306691674,0.50824365,2045.3,2044.9,0.0011]
[1773306697873,1.22325528,2045.4,2044.9,0.0011]
[1773306698061,5.55364519,2045.7,2045.2,1.22237433]
[1773306698062,0.50924365,2045.7,2045.2,1.22237433]
[1773306698262,0.001,2045.7,2045.3,0.66432793]
[1773306700175,0.50924365,2045.7,2045.3,1.22226505]
[1773306700675,0.50924365,2045.7,2045.1,1.88785995]
[1773306701270,0.50924365,2045.7,2045.1,1.88781146]
[1773306701476,0.50924365,2045.7,2045.1,1.22348353]
[1773306702291,0.50824365,2045.5,2045.1,0.0011]
[1773306702995,0.50824365,2045.5,2045.1,0.66542793]
[1773306703191,0.50824365,2045.6,2045.1,0.66542793]
[1773306704592,0.50824365,2045.6,2045.1,1.88784481]
[1773306709207,0.50824365,2045.6,2045.1,1.22351688]
[1773306710210,0.50824365,2045.6,2045.1,0.0011]
[1773306711406,1.73038105,2045.6,2045.1,0.0011]
[1773306711594,0.50824365,2045.5,2045.1,0.0011]
[1773306713719,0.50824365,2045.4,2045.3,0.0011]
[1773306713882,0.50924365,2045.4,2045.3,0.0011]
[1773306716710,0.001,2045.4,2045.3,0.0011]
[1773306743143,0.50924365,2045.4,2044.9,1.22361329]
[1773306743526,0.50924365,2045.4,2045.0,0.66432793]
[1773306744839,0.50924365,2045.4,2045.0,1.88676379]
[1773306745316,0.50924365,2045.4,2045.0,1.22243586]
[1773306745941,0.50769365,2045.3,2045.0,1.22243586]
[1773306747332,0.50769365,2045.3,2044.9,4.89114059]
[1773306750049,0.50769365,2045.3,2044.9,1.22365367]
[1773306750238,0.50769365,2045.2,2044.9,0.0011]
[1773306751417,0.50769365,2045.2,2044.6,4.89081671]
[1773306751622,0.50769365,2045.2,2044.7,1.22267325]
[1773306752151,0.50714365,2045.1,2044.5,1.22279285]
[1773306753236,0.50714365,2045.1,2044.9,0.0011]
[1773306754549,1.72963753,2045.0,2044.9,0.0011]
[1773306754720,0.50714365,2045.0,2044.9,0.0011]
[1773306756820,0.50714365,2045.0,2044.6,1.22383305]
[1773306757155,0.50659365,2044.9,2044.6,1.22383305]
[1773306759945,0.50659365,2044.8,2044.6,0.0011]
[1773306768156,0.001,2044.9,2044.6,0.0011]
[1773306768953,0.55967699,2044.9,2044.6,0.0011]
[1773306771374,0.55867699,2044.8,2044.6,0.0011]
[1773306775653,0.55867699,2044.7,2044.5,0.0011]
[1773306776768,1.78086004,2044.6,2044.5,0.0011]
[1773306779486,0.55812699,2044.6,2044.5,0.0011]
[1773306779690,0.001,2044.7,2044.5,0.0011]
[1773306780174,1.22367747,2044.7,2044.5,0.0011]
[1773306780487,1.78180446,2044.7,2044.5,0.0011]
[1773306783184,0.55812699,2044.6,2044.3,0.0011]
[1773306784387,0.55757699,2044.5,2044.3,0.0011]
[1773306786486,1.78042966,2044.4,2044.3,0.0011]
[1773306787289,0.55757699,2044.6,2044.3,0.0011]
[1773306787466,1.78031372,2044.6,2044.3,0.0011]
[1773306787862,1.22273673,2044.6,2044.3,0.0011]
[1773306788065,0.55757699,2044.5,2044.3,0.0011]
[1773306790887,0.001,2044.4,2044.3,0.0011]
[1773306791690,0.55857699,2044.7,2044.3,0.0011]
[1773306791870,0.55757699,2044.6,2044.3,0.0011]
[1773306794677,0.001,2044.7,2044.3,0.0011]
[1773306795086,0.55857699,2044.7,2044.3,0.0011]
[1773306795490,0.55857699,2044.7,2044.3,1.22401248]
[1773306797893,0.001,2044.7,2044.3,1.22401248]
[1773306798070,0.001,2044.7,2044.4,0.66468519]
[1773306798692,0.001,2044.9,2044.4,0.66468519]
[1773306798892,0.001,2044.9,2044.6,0.66468519]
[1773306800098,0.001,2044.9,2044.7,1.22267325]
[1773306804003,0.001,2044.9,2044.8,0.0011]
[1773306812815,0.55857699,2044.9,2044.8,0.0011]
[1773306818227,0.55857699,2044.9,2044.5,0.0011]
[1773306818522,0.55702699,2044.8,2044.5,0.0011]
[1773306822623,0.55702699,2044.7,2044.5,0.0011]
[1773306828416,0.55802699,2044.7,2044.5,0.0011]
[1773306834542,0.55702699,2044.6,2044.5,0.0011]
[1773306840149,0.55647699,2044.5,2044.3,0.0011]
[1773306840546,0.55647699,2044.4,2044.3,0.0011]
[1773306841851,0.55747699,2044.6,2044.3,0.0011]
[1773306842843,1.78022459,2044.6,2044.3,0.0011]
[1773306843244,0.55647699,2044.5,2044.3,0.0011]
[1773306844232,0.55647699,2044.4,2043.7,1.22321166]
[1773306844928,0.55647699,2044.4,2043.6,4.89240702]
[1773306844929,0.55647699,2044.3,2043.6,4.89240702]
[1773306848060,0.55647699,2044.2,2043.6,4.89240702]
[1773306848961,0.55647699,2044.4,2043.9,0.66457066]
[1773306849173,0.55647699,2044.4,2044.0,1.22309197]
[1773306851765,0.55647699,2044.4,2043.8,4.89274367]
[1773306852838,0.55647699,2044.3,2043.8,4.89274367]
[1773306853166,0.55647699,2044.3,2043.8,4.89384367]
[1773306853458,0.55747699,2044.3,2043.8,4.89384367]
[1773306853835,0.55647699,2044.2,2043.8,1.22431166]
[1773306855055,0.55647699,2044.2,2043.4,2.318]
[1773306855056,0.49357497,2043.8,2042.5,0.12675226]
[1773306855255,0.49357497,2043.7,2042.9,0.12675226]
[1773306855445,0.49357497,2043.6,2042.9,0.12675226]
[1773306856045,0.49357497,2043.5,2043.0,1.35041724]
[1773306856559,0.49357497,2043.5,2043.1,0.12672659]
[1773306858845,0.49357497,2043.5,2043.2,1.22357086]
[1773306859068,0.49357497,2043.5,2043.1,0.12672659]
[1773306859269,0.49357497,2043.5,2043.2,1.22357086]
[1773306859661,0.49357497,2043.5,2043.1,1.22358384]
[1773306859968,0.49357497,2043.5,2043.2,0.12662684]
[1773306860955,0.49357497,2043.5,2043.2,1.35019207]
[1773306861559,0.49357497,2043.5,2043.1,1.22358165]
[1773306861755,0.50105453,2043.2,2042.4,1.22405013]
[1773306863175,0.50105453,2043.1,2042.4,1.22405013]
[1773306865190,0.50105453,2043.1,2042.6,1.22393028]
[1773306865388,0.50105453,2043.3,2042.7,0.66457066]
[1773306867686,0.50105453,2043.2,2042.5,0.66457066]
[1773306867886,1.24051573,2043.2,2042.5,0.66457066]
[1773306868988,1.24051573,2043.2,2042.6,0.0011]
[1773306869497,5.557677,2043.7,2043.0,0.66457066]
[1773306869498,0.50105453,2043.7,2043.0,0.66457066]
[1773306869703,0.50105453,2043.5,2043.1,1.22363075]
[1773306870011,0.50105453,2043.5,2042.8,1.88834577]
[1773306870384,0.50105453,2043.5,2043.0,0.66457066]
[1773306870881,0.50105453,2043.5,2042.8,1.88834577]
[1773306872791,0.50105453,2043.4,2042.8,1.88834577]
[1773306875189,0.50105453,2043.4,2043.0,0.66457066]
[1773306875371,0.50105453,2043.4,2042.8,1.88834577]
[1773306875689,0.50105453,2043.4,2042.8,1.88931652]
[1773306877893,1.72450947,2043.4,2042.8,1.88931652]
[1773306878091,0.50105453,2043.3,2042.8,1.88931652]
[1773306878287,0.50105453,2043.3,2042.8,1.22377511]
[1773306878488,0.50105453,2043.3,2042.7,1.22382278]
[1773306878677,0.50105453,2043.3,2042.6,1.22499755]
[1773306879365,1.22357086,2043.2,2042.6,0.0011]
[1773306879690,0.50105453,2043.1,2042.6,0.0011]
[1773306881372,0.50105453,2043.1,2042.7,0.66554141]
[1773306881717,0.50105453,2043.1,2042.8,1.22381045]
[1773306881891,0.50105453,2043.1,2043.0,0.0011]
[1773306890587,0.50105453,2043.4,2043.0,0.0011]
[1773306891674,0.50105453,2043.7,2043.3,0.66554141]
[1773306892009,0.50105453,2043.7,2043.1,0.66554141]
[1773306892777,0.50105453,2044.0,2043.1,1.88911535]
[1773306893608,0.50105453,2043.8,2043.1,1.88911535]
[1773306894176,0.50105453,2043.8,2043.1,1.22357394]
[1773306894516,0.50105453,2043.8,2043.3,0.66554141]
[1773306894812,0.50105453,2043.7,2043.0,0.0011]
[1773306895115,0.50105453,2043.7,2043.1,0.66554141]
[1773306895522,0.50105453,2043.9,2043.5,0.66554141]
[1773306895814,0.50105453,2043.9,2043.3,0.66554141]
[1773306895993,0.50105453,2043.9,2043.1,0.66554141]
[1773306896310,0.001,2043.8,2043.2,0.0011]
[1773306896470,0.50105453,2043.7,2043.2,0.0011]
[1773306896670,0.001,2043.8,2043.2,0.0011]
[1773306896872,0.001,2043.8,2043.4,0.66554141]
[1773306896873,0.50205453,2043.8,2043.4,0.66554141]
[1773306898101,0.50105453,2044.2,2043.6,0.66554141]
[1773306898787,0.50105453,2044.2,2043.4,0.66554141]
[1773306899186,0.50105453,2044.1,2043.2,0.0011]
[1773306899387,0.50105453,2044.1,2043.3,0.66554141]
[1773306899978,0.50105453,2044.1,2043.2,0.0011]
[1773306899979,0.50105453,2044.1,2043.5,0.66554141]
[1773306900516,0.50105453,2044.1,2043.2,0.0011]
[1773306900680,0.50105453,2044.1,2043.3,0.66554141]
[1773306900876,0.50105453,2044.0,2043.4,1.22345111]
[1773306902474,0.50105453,2044.0,2043.3,1.22348532]
[1773306902680,0.50105453,2043.9,2043.3,1.22348532]
[1773306902879,0.50105453,2043.8,2043.2,0.0011]
[1773306903282,0.50105453,2043.7,2043.2,0.0011]
[1773306905614,0.50105453,2043.7,2043.2,0.66664141]
[1773306905820,0.50105453,2043.9,2043.2,0.66664141]
[1773306907995,0.50105453,2043.9,2043.2,0.0011]
[1773306909290,0.50105453,2043.9,2043.2,0.66664141]
[1773306910412,0.50105453,2043.9,2043.3,1.22351098]
[1773306910609,0.50105453,2043.9,2043.4,0.0011]
[1773306910811,0.50105453,2043.8,2043.4,0.0011]
[1773306911399,0.001,2043.7,2043.4,0.0011]
[1773306911602,0.50205453,2043.7,2043.4,0.0011]
[1773306919815,0.001,2043.7,2043.4,0.0011]
[1773306922918,0.50205453,2043.7,2043.4,0.0011]
[1773306923737,0.50205453,2043.7,2042.9,0.0011]
[1773306923738,0.66554141,2043.5,2042.9,0.0011]
[1773306923892,0.49973084,2043.4,2042.6,1.22390449]
[1773306924092,0.49973084,2043.2,2042.8,0.0022]
[1773306924297,0.49973084,2043.1,2042.3,2.22981933]
[1773306925026,0.49973084,2042.8,2042.3,2.03054515]
[1773306925226,0.49973084,2042.8,2042.3,2.22980829]
[1773306925420,0.49973084,2042.8,2042.4,0.19926314]
[1773306925628,0.49973084,2042.9,2042.4,0.19926314]
[1773306926928,0.49973084,2042.7,2042.3,0.80646182]
[1773306927315,0.49973084,2042.7,2042.3,2.22979772]
[1773306928117,0.49973084,2042.7,2042.3,2.22980198]
[1773306929034,1.72360768,2042.7,2042.3,1.00570325]
[1773306929204,0.49973084,2042.7,2042.3,2.22980984]
[1773306929410,1.7236129,2042.7,2042.3,1.00570325]
[1773306930712,1.7236129,2042.7,2042.3,2.22981234]
[1773306931439,1.7236129,2042.7,2042.3,1.00570325]
[1773306931749,1.7236129,2042.7,2042.3,2.22980895]
[1773306932131,0.49973084,2042.6,2042.3,1.00570325]
[1773306932759,1.16527225,2042.4,2041.4,2.394536]
[1773306932909,0.49973084,2042.3,2041.5,0.0008]
[1773306933107,0.49973084,2042.0,2041.5,0.40015655]
[1773306933308,0.49973084,2042.0,2041.6,0.40015655]
[1773306933513,0.66554141,2042.2,2041.7,0.39934659]
[1773306933514,1.72392675,2042.2,2041.7,0.39934659]
[1773306933715,1.72392675,2042.2,2041.7,0.40014659]
[1773306934022,0.49973084,2042.1,2041.8,0.0008]
[1773306934332,0.49973084,2042.1,2041.6,0.0008]
[1773306935337,0.49973084,2042.1,2041.5,0.37515508]
[1773306935513,0.49973084,2041.9,2041.5,0.37515508]
[1773306936228,0.49973084,2041.9,2041.1,0.37513552]
[1773306937625,0.49973084,2041.9,2041.3,0.3751164]
[1773306937626,1.72410842,2041.9,2041.3,0.3751164]
[1773306937824,1.22437758,2041.9,2041.3,0.3751164]
[1773306938032,0.49973084,2041.8,2041.3,0.3751164]
[1773306938549,0.49973084,2041.8,2041.7,0.0011]
[1773306939940,1.72414067,2041.8,2041.7,0.0011]
[1773306941036,0.49973084,2041.7,2041.2,0.0011]
[1773306941747,0.49973084,2041.5,2041.2,0.0011]
[1773306941955,1.72424853,2041.7,2041.2,0.3574382]
[1773306942263,0.33510382,2041.8,2041.2,0.3574382]
[1773306942438,0.33510382,2041.8,2041.3,0.3563382]
[1773306942643,1.55951374,2041.8,2041.3,0.3563382]
[1773306942843,0.33510382,2041.8,2041.3,0.3563382]
[1773306943962,0.33510382,2041.8,2041.4,1.22464975]
[1773306944164,0.33510382,2041.8,2041.5,0.3563116]
[1773306944665,4.89675736,2042.2,2041.7,0.35630293]
[1773306944666,1.71664813,2042.2,2041.7,0.35630293]
[1773306944860,0.49247488,2042.2,2041.7,0.35630293]
[1773306945264,1.22415831,2042.3,2041.7,0.35630293]
[1773306945464,1.71654279,2042.4,2041.7,0.35630293]
[1773306946164,1.71654279,2042.4,2041.9,0.35629437]
[1773306948242,1.71654279,2042.4,2041.9,1.5806285]
[1773306948646,1.71652804,2042.4,2042.0,0.35626926]
[1773306950465,1.71653458,2042.4,2042.0,1.58054158]
[1773306950850,1.71653458,2042.4,2042.0,0.35626926]
[1773306951574,0.001,2042.2,2042.0,0.35626926]
[1773306952247,0.001,2042.2,2041.8,1.58059813]
[1773306952444,0.001,2042.2,2042.0,0.35623711]
[1773306953768,0.001,2042.2,2041.9,1.22431545]
[1773306954276,0.001,2042.2,2042.0,0.35622158]
[1773306954454,0.001,2042.2,2042.0,1.58048386]
[1773306955573,2.04329309,2042.6,2042.1,0.35620641]
[1773306955874,2.04326417,2042.6,2042.2,1.02241393]
[1773306956577,0.81932639,2042.6,2042.2,2.24653744]
[1773306956742,2.04325984,2042.6,2042.2,2.24653744]
[1773306957858,0.81932639,2042.6,2042.2,2.24653744]
[1773306958758,2.04326015,2042.6,2042.2,2.24653744]
[1773306961388,0.48568104,2042.5,2042.2,2.24653744]
[1773306961561,0.48568104,2042.5,2042.2,1.58032992]
[1773306961959,0.33364535,2042.6,2042.3,0.35616293]
[1773306962169,0.33364535,2042.6,2042.4,0.35616293]
[1773306963282,0.33364535,2042.6,2042.4,1.58015971]
[1773306963492,0.33364535,2042.6,2042.5,0.35615598]
[1773306964852,0.48568104,2043.1,2042.5,0.3561423]
[1773306965072,1.70931957,2043.1,2042.6,0.3561423]
[1773306965273,1.70931957,2043.1,2042.7,0.3561423]
[1773306965486,0.48568104,2043.0,2042.7,0.3561423]
[1773306965790,0.48568104,2043.0,2042.6,1.22390966]
[1773306966285,0.48568104,2043.0,2042.6,1.58004524]
[1773306966886,0.48568104,2043.0,2042.7,0.35612894]
[1773306967390,1.70938109,2043.0,2042.7,0.35612894]
[1773306967561,0.48568104,2043.0,2042.7,0.35612894]
[1773306967761,0.48568104,2043.0,2042.7,1.57999634]
[1773306967967,0.48568104,2043.0,2042.7,1.57998526]
[1773306968693,0.48568104,2043.0,2042.7,1.57998643]